bitfinex-derivatives/quotes_BNBF0:USTF0_20250715
["timestamp","ask_amount","ask_price","bid_price","bid_amount"]
[1752543113274,0.971688,685.53,684.79,0.98073188]
[1752543113977,0.971688,685.53,684.8,0.98073188]
[1752543114177,0.971688,685.52,684.8,0.98073188]
[1752543114474,0.971688,685.52,684.66,1.30869358]
[1752543114475,0.971688,685.54,684.81,0.98073188]
[1752543114875,0.971688,685.54,684.82,0.98073188]
[1752543115677,0.971688,685.59,684.87,0.98073188]
[1752543115878,0.971688,685.58,684.87,0.98073188]
[1752543119877,0.971688,685.65,684.82,0.98073188]
[1752543120178,0.971688,685.65,684.83,0.98073188]
[1752543120575,0.971688,685.7,684.88,0.98073188]
[1752543121077,0.971688,685.73,685.02,0.98073188]
[1752543121377,0.971688,685.76,685.05,0.98073188]
[1752543121581,0.971688,685.83,685.11,0.98073188]
[1752543121882,0.971688,685.84,685.11,0.98073188]
[1752543122177,0.971688,685.84,685.1,0.98073188]
[1752543123077,0.25384876,685.87,685.1,0.98073188]
[1752543123078,0.971688,685.85,685.1,0.98073188]
[1752543123479,0.971688,685.82,685.09,0.98073188]
[1752543124177,0.971688,685.83,685.1,0.98073188]
[1752543124681,0.971688,685.84,685.1,0.98073188]
[1752543124980,0.971688,685.85,685.1,0.98073188]
[1752543125176,0.971688,685.86,685.1,0.98073188]
[1752543125782,0.971688,685.87,685.11,0.98073188]
[1752543126081,0.971688,685.87,685.1,0.98073188]
[1752543126282,0.971688,685.87,685.11,0.98073188]
[1752543126780,0.971688,685.87,685.1,0.98073188]
[1752543127078,0.25378304,685.96,685.1,0.98073188]
[1752543127079,0.971688,685.88,685.1,0.98073188]
[1752543127278,0.971688,685.89,685.09,0.98073188]
[1752543127481,0.971688,685.88,685.1,0.98073188]
[1752543128282,0.971688,685.89,685.1,0.98073188]
[1752543128479,0.971688,685.89,685.09,0.98073188]
[1752543130785,0.971688,685.91,685.08,0.98073188]
[1752543130988,0.971688,685.95,685.12,0.98073188]
[1752543131187,0.971688,685.95,685.11,0.98073188]
[1752543131887,0.971688,685.95,685.12,0.98073188]
[1752543132289,1.22547104,685.96,685.11,0.98073188]
[1752543133088,0.971688,685.95,685.12,0.98073188]
[1752543133287,0.971688,685.95,685.11,0.98073188]
[1752543133589,0.971688,685.94,685.12,0.98073188]
[1752543134286,0.971688,685.95,685.12,0.98073188]
[1752543135290,1.22547104,685.96,685.11,0.98073188]
[1752543135483,0.25378304,685.96,685.11,0.98073188]
[1752543135889,0.25378304,685.96,685.15,0.98073188]
[1752543136285,0.25378304,685.96,685.14,0.98073188]
[1752543136488,0.25378304,685.96,685.11,0.98073188]
[1752543137084,0.971688,686.07,685.11,0.98073188]
[1752543137289,0.971688,686.07,685.1,0.98073188]
[1752543137589,0.25374141,686.05,685.1,0.98073188]
[1752543138990,0.25374141,686.05,685.12,0.98073188]
[1752543139285,0.25374141,686.05,685.11,0.98073188]
[1752543139489,0.25374141,686.05,685.12,0.98073188]
[1752543141289,0.25374141,686.05,685.11,0.98073188]
[1752543142289,0.25374141,686.05,685.1,0.98073188]
[1752543144292,0.971688,686.1,685.16,0.98073188]
[1752543144996,0.971688,686.15,685.13,0.98073188]
[1752543145195,0.25371736,686.16,685.13,0.98073188]
[1752543145196,1.22540536,686.16,685.13,0.98073188]
[1752543146292,0.971688,686.24,685.19,0.98073188]
[1752543146499,1.07529635,686.23,685.19,0.98073188]
[1752543146692,0.971688,686.24,685.19,0.98073188]
[1752543146892,1.07529605,686.23,685.19,0.98073188]
[1752543147093,0.971688,686.2,685.21,0.98073188]
[1752543147299,0.25369424,686.25,685.29,0.98073188]
[1752543148095,0.25369424,686.25,685.27,0.98073188]
[1752543148298,0.25369424,686.25,685.26,0.98073188]
[1752543148598,0.971688,686.32,685.27,0.98073188]
[1752543148795,1.07531053,686.31,685.27,0.98073188]
[1752543148999,0.971688,686.32,685.27,0.98073188]
[1752543149197,0.25365263,686.33,685.26,0.98073188]
[1752543149198,1.22534063,686.33,685.26,0.98073188]
[1752543150301,1.22534063,686.33,683.98,4.5710644]
[1752543150302,0.25365263,686.33,685.25,0.98073188]
[1752543151203,0.25365263,686.33,685.29,0.98073188]
[1752543151800,0.971688,686.32,685.34,0.98073188]
[1752543151999,0.25365263,686.33,685.38,0.98073188]
[1752543152400,0.25365263,686.33,685.36,0.98073188]
[1752543152605,0.25365263,686.33,685.36,0.97435039]
[1752543153104,0.25365263,686.33,685.35,0.97435039]
[1752543154202,0.25365263,686.33,685.34,0.97435039]
[1752543155602,0.25365263,686.33,685.32,0.97435039]
[1752543156905,0.97032465,686.54,685.3,0.97435039]
[1752543157101,0.97032465,686.54,685.11,1.30869358]
[1752543157102,0.2536018,686.48,685.31,0.97435039]
[1752543157305,0.2536018,686.48,685.28,0.97435039]
[1752543158100,0.2536018,686.48,685.29,0.97435039]
[1752543160110,0.2536018,686.48,685.28,0.97435039]
[1752543160307,0.2536018,686.48,685.29,0.97435039]
[1752543161207,0.2536018,686.48,685.33,0.97435039]
[1752543161612,0.97032465,686.45,685.35,0.97435039]
[1752543162010,0.97032465,686.46,685.35,0.97435039]
[1752543162212,0.97032465,686.46,685.34,0.97435039]
[1752543162510,0.2536018,686.48,685.38,0.97435039]
[1752543162813,0.97032465,686.44,685.34,0.97435039]
[1752543163112,0.97032465,686.45,685.35,0.97435039]
[1752543163311,1.07249354,686.44,685.35,0.97435039]
[1752543163514,0.97032465,686.46,685.34,0.97435039]
[1752543163814,2.04286822,686.45,685.35,0.97435039]
[1752543164017,2.04286822,686.44,685.35,0.97435039]
[1752543164211,0.97032465,686.45,685.34,0.97435039]
[1752543164412,1.07258674,686.44,685.34,0.97435039]
[1752543164614,1.07259204,686.43,685.34,0.97435039]
[1752543164914,0.97032465,686.39,685.29,0.97435039]
[1752543165808,0.97032465,686.36,685.3,0.97435039]
[1752543166010,0.97032465,686.36,685.31,0.97435039]
[1752543166210,0.97032465,686.34,685.29,0.97435039]
[1752543166414,0.2536018,686.48,685.29,0.97435039]
[1752543166415,0.97032465,686.35,685.29,0.97435039]
[1752543168212,0.97032465,686.34,685.29,0.97435039]
[1752543168510,0.97032465,686.35,685.29,0.97435039]
[1752543168910,0.97032465,686.35,685.28,0.97435039]
[1752543169211,0.97032465,686.35,685.29,0.97435039]
[1752543169411,0.97032465,686.34,685.29,0.97435039]
[1752543171113,0.97032465,686.34,685.3,0.97435039]
[1752543171517,0.97032465,686.34,685.29,0.97435039]
[1752543172314,0.97032465,686.33,685.3,0.97435039]
[1752543173218,0.97032465,686.32,685.31,0.97435039]
[1752543173718,0.97032465,686.33,685.3,0.97435039]
[1752543174119,1.07457346,686.32,685.28,0.97435039]
[1752543174317,1.07457346,686.31,685.25,0.97435039]
[1752543174520,0.97032465,686.28,685.19,0.97435039]
[1752543175120,0.97032465,686.28,685.03,1.30869358]
[1752543175121,0.97032465,686.26,685.2,0.97435039]
[1752543175617,0.97032465,686.26,684.87,1.96304037]
[1752543175618,0.97032465,686.25,685.21,0.97435039]
[1752543175815,0.97032465,686.25,685.22,0.97435039]
[1752543176220,0.97032465,686.26,685.24,0.97435039]
[1752543176420,0.97032465,686.31,685.3,0.97435039]
[1752543177122,0.97032465,686.3,685.32,0.97435039]
[1752543177520,0.97032465,686.32,685.34,0.97435039]
[1752543177722,0.97032465,686.33,685.35,0.97435039]
[1752543177925,0.97032465,686.34,685.35,0.97435039]
[1752543178119,0.97032465,686.33,685.35,0.97435039]
[1752543178325,0.97032465,686.32,685.36,0.97435039]
[1752543178525,0.97032465,686.28,685.38,0.97435039]
[1752543178724,0.97032465,686.28,685.39,0.97435039]
[1752543179126,0.97032465,686.24,685.41,0.97435039]
[1752543179326,0.97032465,686.25,685.42,0.97435039]
[1752543179825,0.97032465,686.24,685.41,0.97435039]
[1752543180328,0.97032465,686.27,685.44,0.97435039]
[1752543181427,0.97032465,686.27,685.45,0.97435039]
[1752543182328,0.97032465,686.28,685.44,0.97435039]
[1752543183527,0.97032465,686.27,685.44,0.97435039]
[1752543184022,0.97032465,686.28,685.44,0.97435039]
[1752543184227,0.97032465,686.27,685.45,0.97435039]
[1752543184726,0.97032465,686.24,685.41,0.97435039]
[1752543185423,0.97032465,686.24,685.42,0.97435039]
[1752543186024,0.97032465,686.24,685.41,0.97435039]
[1752543186228,0.97032465,686.24,685.42,0.97435039]
[1752543186927,0.97032465,686.23,685.42,0.97435039]
[1752543187334,0.97032465,686.22,685.42,0.97435039]
[1752543187628,1.28672475,686.36,685.42,0.97435039]
[1752543187629,0.97032465,686.23,685.42,0.97435039]
[1752543188132,0.97032465,686.22,685.43,0.97435039]
[1752543188831,0.97032465,686.21,685.43,0.97435039]
[1752543189232,0.97032465,686.21,685.44,0.97435039]
[1752543189533,0.97032465,686.2,685.44,0.97435039]
[1752543190432,0.97032465,686.19,685.45,0.97435039]
[1752543191233,0.97032465,686.18,685.45,0.97435039]
[1752543192137,0.97032465,686.18,685.46,0.97435039]
[1752543192336,0.97032465,686.2,685.45,0.97435039]
[1752543194239,0.97032465,686.19,685.46,0.97435039]
[1752543194536,0.97032465,686.2,685.45,0.97435039]
[1752543195237,0.97032465,686.19,685.46,0.97435039]
[1752543196538,0.97032465,686.18,685.46,0.97435039]
[1752543196738,0.97032465,686.18,685.47,0.97435039]
[1752543197337,0.97032465,686.17,685.47,0.97435039]
[1752543198139,0.97032465,686.17,685.48,0.97435039]
[1752543198543,0.97032465,686.19,685.5,0.97435039]
[1752543198840,0.97032465,686.21,685.52,0.97435039]
[1752543199343,0.97032465,686.27,685.57,0.97435039]
[1752543199541,0.97032465,686.26,685.57,0.97435039]
[1752543200042,0.97032465,686.26,685.58,0.97435039]
[1752543200245,0.97032465,686.25,685.58,0.97435039]
[1752543200443,0.97032465,686.26,685.58,0.97435039]
[1752543201144,0.97032465,686.25,685.58,0.97435039]
[1752543201348,1.28672475,686.41,685.58,0.97435039]
[1752543201349,0.97032465,686.26,685.58,0.97435039]
[1752543201843,0.97032465,686.25,685.58,0.97435039]
[1752543202243,0.97032465,686.25,685.59,0.97435039]
[1752543203148,0.97032465,686.24,685.6,0.97435039]
[1752543204147,0.97032465,686.23,685.6,0.97435039]
[1752543204348,0.97032465,686.26,685.64,0.97435039]
[1752543204743,0.97032465,686.25,685.63,0.97435039]
[1752543205044,0.97032465,686.26,685.64,0.97435039]
[1752543205248,0.97032465,686.25,685.64,0.97435039]
[1752543206044,1.28672475,686.4,684.77,3.265046]
[1752543206045,0.97032465,686.26,685.65,0.97435039]
[1752543206242,0.97032465,686.25,685.66,0.97435039]
[1752543207150,0.97032465,686.24,685.67,0.97435039]
[1752543207350,0.97032465,686.25,685.66,0.97435039]
[1752543208147,0.97032465,686.24,685.67,0.97435039]
[1752543208447,0.97032465,686.24,685.53,1.30869358]
[1752543208448,0.97032465,686.25,685.66,0.97435039]
[1752543209346,0.97032465,686.23,685.67,0.97435039]
[1752543210448,0.97032465,686.22,685.67,0.97435039]
[1752543210647,0.97032465,686.23,685.67,0.97435039]
[1752543214259,0.97032465,686.23,685.66,0.97435039]
[1752543215757,0.97032465,686.24,685.66,0.97435039]
[1752543215953,0.97032465,686.2,685.62,0.97435039]
[1752543216158,0.97032465,686.21,685.61,0.97435039]
[1752543217559,0.97032465,686.22,685.61,0.97435039]
[1752543218056,0.2536018,686.48,684.78,3.265046]
[1752543218057,0.97032465,686.19,685.59,0.97435039]
[1752543219959,0.97032465,686.2,685.6,0.97435039]
[1752543220160,0.97032465,686.24,685.64,0.97435039]
[1752543222465,0.97032465,686.28,685.61,0.97435039]
[1752543222965,0.97032465,686.29,685.61,0.97435039]
[1752543223166,0.97032465,686.36,685.57,0.97435039]
[1752543223666,0.97032465,686.38,685.58,0.97435039]
[1752543223966,0.97032465,686.48,685.69,0.97435039]
[1752543224167,0.97032465,686.48,685.68,0.97435039]
[1752543224667,0.25357501,686.59,685.68,0.97435039]
[1752543224668,0.97032465,686.49,685.68,0.97435039]
[1752543226168,0.97032465,686.49,685.67,0.97435039]
[1752543226464,0.97032465,686.5,685.67,0.97435039]
[1752543226866,0.97032465,686.48,685.68,0.97435039]
[1752543227366,0.97032465,686.48,685.49,1.30869358]
[1752543227367,0.97032465,686.44,685.71,0.97435039]
[1752543228066,0.97032465,686.45,685.71,0.97435039]
[1752543228971,0.97032465,686.44,685.72,0.97435039]
[1752543229171,0.97032465,686.45,685.72,0.97435039]
[1752543229366,0.97032465,686.45,685.71,0.97435039]
[1752543229770,0.97032465,686.5,685.75,0.97435039]
[1752543229967,0.97032465,686.55,685.81,0.97435039]
[1752543230275,0.97032465,686.56,685.8,0.97435039]
[1752543230468,0.97032465,686.56,685.64,1.30869358]
[1752543230469,0.97032465,686.61,685.85,0.97435039]
[1752543230671,0.97032465,686.63,685.87,0.97435039]
[1752543231071,0.25351959,686.76,684.88,3.265046]
[1752543231072,0.97032465,686.66,685.9,0.97435039]
[1752543231273,0.97032465,686.68,685.88,0.97435039]
[1752543231472,0.97032465,686.65,685.9,0.97435039]
[1752543232472,0.97032465,686.64,685.88,0.97435039]
[1752543232670,0.97032465,686.65,685.88,0.97435039]
[1752543233085,0.97032465,686.63,685.89,0.97435039]
[1752543233285,0.97032465,686.64,685.88,0.97435039]
[1752543233688,0.97032465,686.64,685.89,0.97435039]
[1752543234289,0.97032465,686.65,685.88,0.97435039]
[1752543235191,0.97032465,686.64,685.88,0.97435039]
[1752543236389,0.97032465,686.65,685.88,0.97435039]
[1752543237392,0.97032465,686.65,685.87,0.97435039]
[1752543238590,0.97032465,686.66,685.86,0.97435039]
[1752543239294,0.97032465,686.67,685.86,0.97435039]
[1752543240094,0.97032465,686.66,685.87,0.97435039]
[1752543240394,0.97032465,686.66,685.86,0.97435039]
[1752543241190,0.97032465,686.66,685.87,0.97435039]
[1752543241494,0.97032465,686.68,685.86,0.97435039]
[1752543242195,0.97032465,686.67,685.87,0.97435039]
[1752543243391,0.97032465,686.67,685.86,0.97435039]
[1752543243590,0.97032465,686.67,685.87,0.97435039]
[1752543244296,0.97032465,686.67,685.86,0.97435039]
[1752543244495,0.97032465,686.68,685.86,0.97435039]
[1752543245295,0.97032465,686.7,685.85,0.97435039]
[1752543245495,0.97032465,686.7,685.84,0.97435039]
[1752543246297,0.97032465,686.71,685.84,0.97435039]
[1752543246894,0.97508531,686.71,685.84,0.97605398]
[1752543248298,0.97508531,686.71,685.05,3.265046]
[1752543248299,0.97508531,686.73,685.85,0.97605398]
[1752543248494,0.97508531,686.72,685.85,0.97605398]
[1752543248895,0.97508531,686.73,685.85,0.97605398]
[1752543250301,1.2286049,686.76,685.83,0.97605398]
[1752543250597,0.25351959,686.76,685.85,0.97605398]
[1752543250797,0.97508531,686.88,685.85,0.97605398]
[1752543250996,0.25344666,686.84,685.85,0.97605398]
[1752543252902,0.25344666,686.84,685.84,0.97605398]
[1752543253604,0.97508531,687.01,685.94,0.97605398]
[1752543253801,0.25343558,686.91,685.94,0.97605398]
[1752543254001,1.07873797,686.9,685.94,0.97605398]
[1752543254206,1.07873797,686.9,685.93,0.97605398]
[1752543255803,0.25343558,686.91,685.94,0.97605398]
[1752543256007,0.25343558,686.91,686.04,0.97605398]
[1752543256507,0.25343558,686.91,686.03,0.97605398]
[1752543258007,0.25343558,686.91,686.02,0.97605398]
[1752543258804,0.25343558,686.91,686.03,0.97605398]
[1752543259707,0.25343558,686.91,686.02,0.97605398]
[1752543259908,0.25343558,686.91,685.99,0.97605398]
[1752543262210,0.25343558,686.91,685.97,0.97605398]
[1752543263711,0.25343558,686.91,685.96,0.97605398]
[1752543267609,0.97508531,687.02,685.96,0.97605398]
[1752543268010,0.25339591,686.99,685.97,0.97605398]
[1752543269014,0.25339591,686.99,685.99,0.97605398]
[1752543269412,0.25339591,686.99,686.02,0.97605398]
[1752543270216,0.25339591,686.99,686.01,0.97605398]
[1752543271412,0.25339591,686.99,686.02,0.97605398]
[1752543274018,0.25339591,686.99,686.03,0.97605398]
[1752543274216,0.25339591,686.99,686.02,0.97605398]
[1752543275317,0.97508531,686.98,686.0,0.97605398]
[1752543276213,0.97508531,686.98,686.01,0.97605398]
[1752543276418,0.97508531,686.97,686.01,0.97605398]
[1752543277314,0.97508531,686.96,686.02,0.97605398]
[1752543278418,0.97508531,686.95,686.03,0.97605398]
[1752543278721,0.97508531,686.97,686.03,0.97605398]
[1752543279321,0.97508531,686.96,686.04,0.97605398]
[1752543279520,0.97508531,687.04,686.01,0.97605398]
[1752543279720,0.97508531,687.02,686.03,0.97605398]
[1752543279921,0.97508531,687.03,686.03,0.97605398]
[1752543280420,0.25337008,687.14,686.03,0.97605398]
[1752543280421,0.97508531,687.02,686.03,0.97605398]
[1752543280616,0.25337008,687.14,686.1,0.97605398]
[1752543280617,0.97508531,687.12,686.1,0.97605398]
[1752543280816,1.07842841,687.11,686.1,0.97605398]
[1752543281120,1.07842841,687.1,686.1,0.97605398]
[1752543281418,1.07842841,687.09,686.19,0.97605398]
[1752543281718,1.07842841,687.08,686.18,0.97605398]
[1752543282020,1.07842841,687.07,686.18,0.97605398]
[1752543282218,0.25337008,687.14,686.18,0.97605398]
[1752543282418,1.07906268,687.13,686.19,0.97605398]
[1752543282617,1.07906268,687.13,686.2,0.97605398]
[1752543282917,1.07906499,687.12,686.21,0.97605398]
[1752543283117,1.07906499,687.11,686.21,0.97605398]
[1752543283318,1.07906499,687.1,686.27,0.97605398]
[1752543283520,1.07906499,687.09,686.29,0.97605398]
[1752543283721,1.07906499,687.08,686.28,0.97605398]
[1752543283917,0.25332489,687.24,686.31,0.97605398]
[1752543283918,1.07906499,687.07,686.31,0.97605398]
[1752543284119,1.07906499,687.06,686.31,0.97605398]
[1752543284319,0.25332489,687.24,686.34,0.97605398]
[1752543284517,1.07960625,687.23,686.34,0.97605398]
[1752543284718,1.07960625,687.22,686.34,0.97605398]
[1752543284917,1.07960625,687.21,686.39,0.97605398]
[1752543285120,1.07960625,687.2,686.39,0.97605398]
[1752543285317,1.07960625,687.19,686.38,0.97605398]
[1752543285517,1.07960625,687.18,686.38,0.97605398]
[1752543285718,1.07960625,687.17,686.38,0.97605398]
[1752543285918,0.25332489,687.24,686.38,0.97605398]
[1752543285919,1.07960625,687.16,686.38,0.97605398]
[1752543286121,1.07960625,687.15,686.39,0.97605398]
[1752543286318,1.07960625,687.14,686.39,0.97605398]
[1752543286621,1.07960625,687.13,686.39,0.97605398]
[1752543286918,0.25332489,687.24,686.39,0.97605398]
[1752543287120,1.08012595,687.23,686.39,0.97605398]
[1752543287320,1.08012595,687.22,686.38,0.97605398]
[1752543287520,1.08012595,687.21,686.43,0.97605398]
[1752543287722,1.08012595,687.2,686.43,0.97605398]
[1752543287920,1.08012595,687.19,686.45,0.97605398]
[1752543288119,1.08012595,687.18,686.45,0.97605398]
[1752543288425,0.25332489,687.24,686.44,0.97605398]
[1752543289720,0.25332489,687.24,686.42,0.97605398]
[1752543290322,0.25332489,687.24,686.41,0.97605398]
[1752543292324,0.25332489,687.24,686.16,1.96304037]
[1752543292325,0.25332489,687.24,686.4,0.97605398]
[1752543292826,0.25332489,687.24,686.34,0.97605398]
[1752543293926,0.97508531,687.23,686.3,0.97605398]
[1752543294123,0.25332489,687.24,686.14,0.97605398]
[1752543297427,0.25332489,687.24,686.16,0.97605398]
[1752543298030,0.25332489,687.24,686.2,0.97605398]
[1752543298225,0.25332489,687.24,686.18,0.97605398]
[1752543299137,0.97508531,687.22,686.25,0.97605398]
[1752543299329,0.97508531,687.22,686.26,0.97605398]
[1752543300930,0.25332489,687.24,686.23,0.97605398]
[1752543301130,0.25332489,687.24,686.27,0.97605398]
[1752543302040,0.25332489,687.24,686.28,0.97605398]
[1752543302239,0.25332489,687.24,686.29,0.97605398]
[1752543305141,0.25332489,687.24,686.13,1.30869358]
[1752543305142,0.25332489,687.24,686.28,0.97605398]
[1752543305437,0.97508531,687.16,686.16,0.97605398]
[1752543305941,0.97508531,687.15,686.15,0.97605398]
[1752543306443,0.97508531,687.14,686.16,0.97605398]
[1752543307338,0.97508531,687.13,686.16,0.97605398]
[1752543307838,0.97508531,687.14,686.17,0.97605398]
[1752543308039,0.97508531,687.13,686.16,0.97605398]
[1752543308238,0.97508531,687.13,686.17,0.97605398]
[1752543308542,0.97508531,687.12,686.17,0.97605398]
[1752543308939,0.97508531,687.13,686.16,0.97605398]
[1752543309244,1.07572445,687.12,686.16,0.97605398]
[1752543309542,2.05098744,687.11,686.17,0.97605398]
[1752543309743,0.97508531,687.11,686.17,0.97605398]
[1752543310147,0.97508531,687.1,686.15,0.97605398]
[1752543310444,0.97508531,687.03,686.1,0.97605398]
[1752543311245,0.97508531,687.02,686.1,0.97605398]
[1752543312349,0.25332489,687.24,686.13,0.97605398]
[1752543312350,0.97508531,686.97,686.13,0.97605398]
[1752543312546,0.97508531,686.96,686.13,0.97605398]
[1752543312845,0.97508531,686.97,686.13,0.97605398]
[1752543313150,0.97508531,686.96,686.13,0.97605398]
[1752543313449,0.97508531,686.96,686.14,0.97605398]
[1752543313849,0.97508531,686.95,686.14,0.97605398]
[1752543314350,0.97508531,686.97,686.13,0.97605398]
[1752543315952,0.97508531,686.93,686.09,0.97605398]
[1752543316451,0.97508531,686.97,686.06,0.97605398]
[1752543317450,0.97508531,686.98,686.06,0.97605398]
[1752543317753,0.97508531,686.97,686.06,0.97605398]
[1752543318354,0.97508531,686.91,685.99,0.97605398]
[1752543320154,0.97508531,686.9,685.98,0.97605398]
[1752543320354,0.97508531,686.91,685.98,0.97605398]
[1752543321355,0.97508531,686.9,685.98,0.97605398]
[1752543322357,0.97508531,686.84,686.02,0.97605398]
[1752543322554,0.97508531,686.85,686.03,0.97605398]
[1752543322852,0.97508531,686.86,686.03,0.97605398]
[1752543323051,0.97508531,686.89,686.06,0.97605398]
[1752543323557,0.97508531,686.88,686.06,0.97605398]
[1752543323764,0.97508531,686.89,686.06,0.97605398]
[1752543324154,0.97508531,686.91,686.05,0.97605398]
[1752543325352,0.97508531,686.94,686.08,0.97605398]
[1752543325657,0.97508531,686.96,686.07,0.97605398]
[1752543326255,0.97508531,686.96,686.08,0.97605398]
[1752543327655,0.97508531,687.02,686.14,0.97605398]
[1752543328460,0.97508531,687.02,686.15,0.97605398]
[1752543328656,0.97508531,687.03,686.15,0.97605398]
[1752543328957,0.97508531,687.02,686.14,0.97605398]
[1752543329157,0.97508531,687.06,686.18,0.97605398]
[1752543329655,0.97508531,687.07,686.24,0.97605398]
[1752543329859,0.97508531,687.1,686.22,0.97605398]
[1752543330557,0.97508531,687.1,686.23,0.97605398]
[1752543332062,0.97508531,687.11,686.22,0.97605398]
[1752543332464,0.97508531,687.13,686.24,0.97605398]
[1752543332662,0.97508531,687.12,686.24,0.97605398]
[1752543333163,0.97508531,687.13,686.24,0.97605398]
[1752543333564,0.97508531,687.13,686.25,0.97605398]
[1752543334565,0.97508531,687.09,686.28,0.97605398]
[1752543335064,0.97508531,687.13,686.32,0.97605398]
[1752543335264,0.97508531,687.17,686.36,0.97605398]
[1752543337362,0.97508531,687.16,686.37,0.97605398]
[1752543337865,0.97508531,687.19,686.39,0.97605398]
[1752543338066,0.97508531,687.23,686.43,0.97605398]
[1752543338265,0.25332489,687.24,686.43,0.97605398]
[1752543338266,0.97508531,687.22,686.43,0.97605398]
[1752543338565,0.97508531,687.23,686.43,0.97605398]
[1752543339262,1.2284102,687.24,686.42,0.97605398]
[1752543343270,0.25332489,687.24,686.41,0.97605398]
[1752543344766,0.25332489,687.24,686.42,0.97605398]
[1752543347066,0.97508531,687.22,686.44,0.97605398]
[1752543348069,0.25332489,687.24,686.41,0.97605398]
[1752543348673,0.97508531,687.17,686.32,0.97605398]
[1752543349072,0.97508531,687.16,686.33,0.97605398]
[1752543349369,0.25332489,687.24,686.22,0.97605398]
[1752543349770,0.25332489,687.24,686.23,0.97605398]
[1752543351774,0.25332489,687.24,686.19,0.97605398]
[1752543352175,0.25332489,687.24,686.17,0.97605398]
[1752543352573,0.97508531,687.09,686.18,0.97605398]
[1752543352777,0.97508531,687.08,686.16,0.97605398]
[1752543354676,0.97508531,687.08,686.15,0.97605398]
[1752543357381,0.97508531,687.07,686.15,0.97605398]
[1752543358382,0.97508531,687.07,686.14,0.97605398]
[1752543358579,0.97508531,687.07,686.15,0.97605398]
[1752543358879,0.97508531,687.07,686.14,0.97605398]
[1752543359685,0.97508531,687.08,686.15,0.97605398]
[1752543359983,0.97508531,687.05,686.18,0.97605398]
[1752543360680,0.97460457,687.05,686.18,0.97704061]
[1752543360879,0.97460457,687.06,686.24,0.97704061]
[1752543362685,0.25332489,687.24,686.27,0.97704061]
[1752543362686,0.97460457,687.09,686.27,0.97704061]
[1752543363383,0.97460457,687.1,686.27,0.97704061]
[1752543363882,0.97460457,687.09,686.26,0.97704061]
[1752543366394,0.97460457,687.1,686.27,0.97704061]
[1752543366990,0.97460457,687.11,686.26,0.97704061]
[1752543367290,0.97460457,687.1,686.27,0.97704061]
[1752543367696,0.97460457,687.1,686.26,0.97704061]
[1752543369392,0.97460457,687.1,686.27,0.97704061]
[1752543369592,0.97460457,687.1,686.26,0.97704061]
[1752543370698,0.97460457,687.08,686.28,0.97704061]
[1752543372592,0.97460457,687.08,686.27,0.97704061]
[1752543372797,0.97460457,687.08,686.28,0.97704061]
[1752543372998,0.97460457,687.08,686.27,0.97704061]
[1752543373195,0.97460457,687.07,686.28,0.97704061]
[1752543375401,0.97460457,687.06,686.28,0.97704061]
[1752543376100,0.97460457,687.08,686.27,0.97704061]
[1752543376305,0.97460457,687.08,686.28,0.97704061]
[1752543376501,0.97460457,687.06,686.26,0.97704061]
[1752543376904,0.97460457,687.05,686.27,0.97704061]
[1752543377506,0.97460457,687.1,686.24,0.97704061]
[1752543378103,0.25332489,687.24,686.17,0.97704061]
[1752543378104,0.97460457,687.03,686.17,0.97704061]
[1752543378305,0.97460457,687.01,686.16,0.97704061]
[1752543378502,0.97460457,687.01,686.17,0.97704061]
[1752543379001,0.97460457,687.03,686.15,0.97704061]
[1752543379708,0.97460457,686.97,686.1,0.97704061]
[1752543380405,0.97460457,686.96,686.1,0.97704061]
[1752543381605,0.97460457,686.97,686.1,0.97704061]
[1752543381904,0.97460457,686.98,686.1,0.97704061]
[1752543382411,0.97460457,686.94,686.12,0.97704061]
[1752543383008,0.97460457,686.94,686.13,0.97704061]
[1752543383206,0.97460457,686.94,686.12,0.97704061]
[1752543384008,0.97460457,686.88,686.19,0.97704061]
[1752543384306,0.25332489,687.24,686.27,0.97704061]
[1752543384307,0.97460457,686.95,686.27,0.97704061]
[1752543385907,0.97460457,686.94,686.27,0.97704061]
[1752543387611,0.97460457,686.94,686.28,0.97704061]
[1752543388311,0.97460457,687.02,686.35,0.97704061]
[1752543390113,0.25332489,687.24,686.35,0.97704061]
[1752543390114,0.97460457,687.03,686.35,0.97704061]
[1752543390413,0.97460457,687.06,686.35,0.97704061]
[1752543390608,0.97460457,687.06,686.39,0.97704061]
[1752543391210,0.97460457,687.06,686.38,0.97704061]
[1752543394718,0.97460457,687.07,686.37,0.97704061]
[1752543395815,0.97460457,687.07,686.23,1.30869358]
[1752543395816,0.97460457,687.09,686.36,0.97704061]
[1752543396018,0.97460457,687.07,686.3,0.97704061]
[1752543396318,0.97460457,687.07,686.31,0.97704061]
[1752543396518,0.97460457,687.05,686.29,0.97704061]
[1752543397317,0.97460457,687.03,686.22,0.97704061]
[1752543398120,0.25337838,686.95,686.22,0.97704061]
[1752543399616,0.25337838,686.95,686.23,0.97704061]
[1752543400115,0.25337838,686.95,686.22,0.97704061]
[1752543400321,0.25337838,686.95,686.23,0.97704061]
[1752543402421,0.25337838,686.95,686.24,0.97704061]
[1752543403024,0.25337838,686.95,686.25,0.97704061]
[1752543403220,0.25337838,686.95,686.26,0.97704061]